[Event "Lliga Catalana Relegation 2024"]
[Site "Catalonia"]
[Date "2024.03.16"]
[Round "1.1"]
[White "Alvarado Diaz, Alejandro"]
[Black "Pomes Marcet, Joan"]
[Result "1-0"]
[ECO "D11"]
[WhiteElo "2489"]
[BlackElo "2235"]
[Annotator "TA"]
[PlyCount "129"]
[EventDate "2024.01.18"]
[EventType "team-tourn"]
[EventCountry "ESP"]
[SourceTitle "playchess.com"]
[Source "ChessBase"]
[SourceQuality "1"]
[TimeControl "5400+30"]

{[%evp 34,129,67,47,60,43,46,41,45,39,44,39,52,21,57,56,56,55,50,45,60,48,69,62,55,17,45,30,45,31,45,16,31,0,30,49,52,48,47,17,78,69,93,66,72,57,89,42,97,79,81,87,87,87,87,87,87,87,106,112,108,104,112,112,113,114,118,85,125,110,131,113,119,150,231,232,193,190,190,190,242,174,195,144,205,190,191,158,298,293,416,422,575,573,686,562,1214,1208]} 1. d4 {[%emt 0:01:27]} d5 {[%emt 0:00:10]} 2. c4 {[%emt 0:00:41]} c6 {[%emt 0:00:09]} 3. Nf3 {[%emt 0:00:22]} Nf6 {[%emt 0:00:23]} 4. Qc2 {[%emt 0:00:41]} Na6 {[%emt 0:04:23]} 5. cxd5 {[%emt 0:02:28]} Nb4 {[%emt 0:01:06]} 6. Qb3 {[%emt 0:00:20] D11: Slav Defence: 3 Nf3 sidelines and 3...Nf6 4 e3 Bg4.} Nbxd5 {[%emt 0:00:12]} 7. Nbd2 $146 {[%emt 0:03:38]} ({Predecessor:} 7. Nc3 Qb6 8. Nxd5 Nxd5 9. Qxb6 axb6 10. Bd2 Bf5 11. Nh4 e6 12. Nxf5 exf5 13. e3 {½-½ Quaranta,C (2088)-Midonet,M (2116) Salento op 1st 2012 (3)}) 7... Qb6 {[%emt 0:10:06]} 8. a3 {[%emt 0:01:36]} Qxb3 {[%emt 0:02:57]} 9. Nxb3 {[%emt 0:00:11]} a5 {[%emt 0:00:45]} 10. e3 {[%emt 0:07:50]} g6 {[%emt 0:15:05]} 11. Bd2 {[%emt 0:06:21]} a4 {[%emt 0:03:26]} 12. Nc5 {[%emt 0:00:25]} Bg7 {[%emt 0:00:32]} 13. Rc1 {[%emt 0:09:49]} O-O {[%emt 0:02:24]} 14. Be2 {[%emt 0:00:53]} Nd7 {[%emt 0:23:26]} 15. Nd3 {[%emt 0:00:54]} e6 {[%emt 0:03:22]} 16. O-O {[%emt 0:01:24]} Re8 {[%emt 0:00:59]} 17. e4 {[%emt 0:02:47]} N5f6 {[%emt 0:01:33]} 18. e5 {[%emt 0:00:30]} Nd5 {[%emt 0:02:20]} 19. Rfe1 {[%emt 0:04:45]} h6 {[%emt 0:01:06]} 20. Bf1 {[%emt 0:03:48]} Rd8 {[%emt 0:02:01]} 21. h4 {[%emt 0:03:05]} Kh7 {[%emt 0:03:41]} 22. Red1 {[%emt 0:03:19]} Bf8 {[%emt 0:00:56]} 23. Be1 {[%emt 0:00:28]} N7b6 {[%emt 0:08:19]} 24. g3 {[%emt 0:02:41]} Bd7 {[%emt 0:01:15]} 25. Nd2 {[%emt 0:00:32]} Be8 {[%emt 0:00:30]} 26. Ne4 {[%emt 0:00:10]} Nc8 {[%emt 0:00:46]} 27. Bg2 {[%emt 0:04:47]} Ra7 {[%emt 0:01:08]} 28. Rc2 {[%emt 0:04:19]} Kg7 {[%emt 0:00:31]} 29. Nc1 {[%emt 0:03:18]} Be7 {[%emt 0:01:00]} 30. Bh3 {[%emt 0:00:55]} b6 {[%emt 0:02:29]} 31. Ne2 {[%emt 0:02:48]} Rc7 {[%emt 0:01:45]} 32. Rdc1 {[%emt 0:00:56]} Na7 {[%emt 0:00:44]} 33. Rc4 {[%emt 0:00:34]} b5 {[%emt 0:02:47]} 34. R4c2 {[%emt 0:00:16]} Rb7 {[%emt 0:00:34]} 35. Nc5 {[%emt 0:01:31]} Bxc5 {[%emt 0:00:40]} 36. Rxc5 {[%emt 0:00:05]} Ne7 {[%emt 0:00:29]} (36... b4 $11) 37. Ba5 {[%emt 0:02:20]} Rdd7 {[%emt 0:01:16]} 38. R5c2 {[%emt 0:00:30]} Nd5 {[%emt 0:01:13]} 39. Bg2 {[%emt 0:01:07]} Rb8 {[%emt 0:00:30]} 40. Rd1 {[%emt 0:00:31]} (40. Nc3 $16) 40... Ne7 {[%emt 0:00:50]} (40... b4 $14) 41. Bb4 {[%emt 0:00:20]} Nd5 {[%emt 0:01:08]} 42. Bc5 {[%emt 0:01:16]} Nc8 {[%emt 0:00:15]} 43. g4 {[%emt 0:05:50]} Rd8 {[%emt 0:00:32]} 44. Ng3 {[%emt 0:00:26]} Ncb6 {[%emt 0:00:34]} 45. Ne4 {[%emt 0:00:13]} Nc8 {[%emt 0:00:45]} 46. Bf1 {[%emt 0:02:36]} Bd7 {[%emt 0:00:26]} 47. Rd3 {[%emt 0:01:20]} Rb7 {[%emt 0:00:35]} 48. Rf3 {[%emt 0:00:19]} Be8 {[%emt 0:00:16]} 49. Kh2 {[%emt 0:00:25]} Rb8 {[%emt 0:00:51]} 50. Kg3 {[%emt 0:00:16]} Rb7 {[%emt 0:00:08]} 51. Rd3 {[%emt 0:00:30]} Rbd7 {[%emt 0:00:16]} 52. Bh3 {[%emt 0:00:42]} Rb7 {[%emt 0:00:36]} 53. f4 {[%emt 0:00:17]} f5 {[%emt 0:00:30]} (53... Bd7 $16 54. Rf3 f6 55. exf6+ Nxf6 56. Nxf6 Kxf6) 54. exf6+ $18 {[%emt 0:01:21]} Nxf6 {[%emt 0:00:24]} 55. Nxf6 {[%emt 0:00:03]} Kxf6 {[%emt 0:00:07]} 56. g5+ {[%emt 0:00:28]} Kg7 {[%emt 0:00:10]} (56... hxg5 $142 57. fxg5+ Kg7) 57. Bxe6 {[%emt 0:00:36]} Nd6 {[%emt 0:00:04]} 58. Re3 {[%emt 0:01:54]} (58. Bb4 $18) 58... hxg5 {[%emt 0:01:38]} (58... Bf7 $16 59. Kf2 h5) 59. hxg5 {[%emt 0:00:50]} Bf7 {[%emt 0:00:05]} 60. Kf2 {[%emt 0:11:36]} Nc4 {[%emt 0:01:22]} (60... Bxe6 $16 61. Rxe6 Nf5) 61. Re1 $18 {[%emt 0:00:57]} (61. Bxc4 bxc4 62. Be7 Rdb8 $16) 61... Bxe6 {[%emt 0:01:12]} (61... Nb6 $142 62. Bxf7 Kxf7) 62. Rxe6 $18 {[%emt 0:00:03]} Rf7 {[%emt 0:00:27]} 63. Kg3 {[%emt 0:00:15]} ({Not} 63. Rxc6 Rxf4+ 64. Kg3 Rf5 $16) 63... Rc8 {[%emt 0:00:27]} 64. d5 {[%emt 0:00:00]} cxd5 {[%emt 0:00:43]} 65. Bd4+ {[%emt 0:05:25]} 1-0

[Event "Lliga Catalana Relegation 2024"]
[Site "Catalonia"]
[Date "2024.04.06"]
[Round "1.1"]
[White "Garriga Cazorla, Pere"]
[Black "Castillo Dalmau, Albert"]
[Result "1/2-1/2"]
[ECO "D30"]
[WhiteElo "2470"]
[BlackElo "2329"]
[Annotator "TA"]
[PlyCount "85"]
[EventDate "2024.01.18"]
[EventType "team-tourn"]
[EventCountry "ESP"]
[SourceTitle "playchess.com"]
[Source "ChessBase"]
[SourceQuality "1"]
[TimeControl "5400+30"]

{[%evp 9,85,14,23,22,33,12,19,34,25,17,13,17,20,27,20,13,9,0,7,0,0,0,0,34,18,0,20,30,28,26,20,46,41,0,0,0,33,28,29,15,0,6,22,0,0,0,2,4,4,0,23,7,50,48,30,19,112,0,0,0,0,0,0,0,0,0,0,0,0,0,0,0,0,0,0,0,0,0]} 1. d4 {[%emt 0:00:04]} d5 {[%emt 0:00:04]} 2. c4 {[%emt 0:00:10]} e6 {[%emt 0:00:03]} 3. Nf3 {[%emt 0:00:05]} a6 {[%emt 0:00:08]} 4. Bg5 {[%emt 0:00:06]} Be7 {[%emt 0:00:03]} 5. Bxe7 {[%emt 0:00:09]} Qxe7 {[%emt 0:00:05]} 6. Nbd2 {[%emt 0:00:07]} Nf6 {[%emt 0:00:05]} 7. g3 {[%emt 0:00:28]} b6 {[%emt 0:00:25]} 8. Bg2 {[%emt 0:01:47]} Bb7 {[%emt 0:00:05]} 9. cxd5 {[%emt 0:00:37]} exd5 {[%emt 0:00:04]} 10. Rc1 {[%emt 0:01:41]} c5 {[%emt 0:02:06]} 11. O-O {[%emt 0:09:08] Qb3 is the strong threat.} Nbd7 {[%emt 0:01:17]} 12. dxc5 {[%emt 0:02:53]} bxc5 {[%emt 0:00:03]} 13. Qb3 {[%emt 0:00:05]} Rb8 {[%emt 0:00:29]} 14. Qa3 {[%emt 0:00:02]} O-O {[%emt 0:00:40]} 15. e3 {[%emt 0:07:15]} Rfe8 {[%emt 0:07:39][%cal Bf8e8,Be8e7,Be7b7][%mdl 32]} 16. Rfd1 {[%emt 0:09:29]} h5 {[%emt 0:01:14]} 17. Ne1 {[%emt 0:05:23]} d4 {[%emt 0:57:11]} 18. exd4 {[%emt 0:17:32] [#] Black must now prevent Bxb7.} (18. Bxb7 {is interesting.} dxe3 19. Bxa6 exf2+ 20. Kxf2 Ra8 21. Kg1) 18... Bxg2 {[%emt 0:00:22]} 19. Nxg2 {[%emt 0:02:01]} cxd4 {[%emt 0:00:03]} 20. Qxe7 {[%emt 0:06:50]} Rxe7 {[%emt 0:00:03]} 21. Rb1 {[%emt 0:01:17]} Ne5 {[%emt 0:02:38]} 22. Ne1 {[%emt 0:00:35]} Reb7 {[%emt 0:03:07]} 23. Nb3 {[%emt 0:02:48]} Nd5 {[%emt 0:02:02]} 24. f4 {[%emt 0:07:35]} (24. Nxd4 $2 {is the wrong capture.} Nc3 (24... Rxb2 25. Rxb2 Rxb2 26. Ndf3 $11) 25. b3 Nxd1 (25... Nxa2 26. Ra1 $11) 26. Rxd1 Rd8 $19) 24... Nc6 {[%emt 0:02:07]} 25. Nd3 {[%emt 0:00:35]} a5 {[%emt 0:07:00]} 26. Nbc5 {[%emt 0:02:47]} Re7 {[%emt 0:01:07]} 27. Re1 {[%emt 0:00:52]} Rbe8 {[%emt 0:02:15]} 28. Rxe7 {[%emt 0:01:42]} Rxe7 {[%emt 0:00:03]} 29. Kf2 {[%emt 0:00:26]} Ne3 {[%emt 0:03:13]} 30. h3 {[%emt 0:00:57] Wards off Ng4+} Nb4 {[%emt 0:01:15]} 31. Nxb4 {[%emt 0:01:59]} axb4 $14 {[%emt 0:00:04][%mdl 4096] Endgame. KRN-KRN} 32. Nd3 {[%emt 0:00:04]} Nd5 {[%emt 0:02:48]} (32... b3 $11 33. axb3 Rb7) 33. Rc1 {[%emt 0:01:12]} (33. Re1 $16 {Rxe7 would now be deadly.} Rd7 34. Re8+ Kh7 35. Ne5) 33... Re3 $11 {[%emt 0:00:21] The position is equal.} 34. Rd1 {[%emt 0:00:43][%cal Od3b4] [#] And now Nxb4! would win.} h4 {[%emt 0:00:30]} 35. gxh4 {[%emt 0:04:29] Hoping for Nc5.} Rxh3 {[%emt 0:00:04]} 36. Ne5 {[%emt 0:00:29]} Rh2+ {[%emt 0:05:00]} 37. Kg3 {[%emt 0:00:36]} Rxb2 {[%emt 0:00:57][%cal Od5c3]} 38. Rxd4 {[%emt 0:00:02]} Nf6 {[%emt 0:01:03]} 39. Rd8+ {[%emt 0:00:31]} Kh7 {[%emt 0:00:01]} 40. f5 {[%emt 0:02:10]} Rxa2 {[%emt 0:02:46]} 41. Nxf7 {[%emt 0:00:39][%csl Gf7][%cal Rd8h8]} g6 {[%emt 0:00:00]} 42. Rb8 {[%emt 0:05:00]} gxf5 {[%emt 0:00:00]} 43. Rxb4 {[%emt 0:03:28] Weighted Error Value: White=0.09 (flawless) /Black=0.10 (very precise) .  Mistake:       	White=1     	Black=1      Inaccurate:     	White=1     	Black=2      OK:         	White=15    	Black=17     Best:        	White=2     	Black=1} 1/2-1/2

[Event "Lliga Catalana Relegation 2024"]
[Site "Catalonia"]
[Date "2024.03.16"]
[Round "1.2"]
[White "Duran Albareda, Xavier"]
[Black "Comas Fabrego, Lluis"]
[Result "1/2-1/2"]
[ECO "D00"]
[WhiteElo "2267"]
[BlackElo "2420"]
[Annotator "TA"]
[PlyCount "38"]
[EventDate "2024.01.18"]
[EventType "team-tourn"]
[EventCountry "ESP"]
[SourceTitle "playchess.com"]
[Source "ChessBase"]
[SourceQuality "1"]
[TimeControl "5400+30"]

{[%evp 9,38,-20,-18,-35,-20,-39,-17,-31,-15,-47,0,-29,-33,-47,-61,-49,-48,-57,-60,-77,-68,-57,-69,-86,-84,-87,-79,-86,-85,-108,-105]} 1. d4 {[%emt 0:00:05]} Nf6 {[%emt 0:00:48]} 2. Nc3 {[%emt 0:00:07]} d5 {[%emt 0:01:42]} 3. Bf4 {[%emt 0:00:12]} a6 {[%emt 0:00:11]} 4. e3 {[%emt 0:00:30]} b5 {[%emt 0:00:17]} 5. h3 {[%emt 0:03:54]} e6 {[%emt 0:04:37]} 6. Bd3 {[%emt 0:06:43]} Bb7 {[%emt 0:02:47]} 7. Nf3 {[%emt 0:04:13]} Nbd7 {[%emt 0:01:50]} 8. O-O {[%emt 0:03:33] The position is equal.} c5 {[%emt 0:01:40]} 9. dxc5 {[%emt 0:02:26]} Nxc5 {[%emt 0:00:34]} (9... Bxc5 $15 10. a4 b4) 10. a3 {[%emt 0:10:22]} Be7 {[%emt 0:14:11]} 11. Qe2 {[%emt 0:05:26]} O-O {[%emt 0:01:20]} 12. Rfd1 {[%emt 0:13:58]} Qe8 {[%emt 0:23:18]} 13. Ne5 {[%emt 0:06:24]} Rc8 {[%emt 0:00:51]} 14. Bg5 {[%emt 0:06:52]} Nfe4 {[%emt 0:10:09]} 15. Bxe7 {[%emt 0:08:49]} Qxe7 {[%emt 0:00:10]} 16. Bxe4 {[%emt 0:00:23]} dxe4 {[%emt 0:00:07] Black is better.} 17. Ng4 {[%emt 0:04:25]} f6 {[%emt 0:02:42]} 18. Rd4 {[%emt 0:01:21]} f5 {[%emt 0:11:10]} 19. Nh2 {[%emt 0:00:10]} Nd7 {[%emt 0:02:20] Weighted Error Value: White=0.12 (very precise) /Black=0.08 (flawless) .  Mistake:       	---       	Black=1      Inaccurate:     	White=2     	---        OK:         	White=3     	Black=7} 1/2-1/2

[Event "Lliga Catalana Relegation 2024"]
[Site "Catalonia"]
[Date "2024.04.06"]
[Round "1.2"]
[White "Rojano Alfonso, Carlos"]
[Black "Lacasa Diaz, Josep Anton"]
[Result "1/2-1/2"]
[ECO "C00"]
[WhiteElo "2239"]
[BlackElo "2336"]
[Annotator "RC"]
[PlyCount "64"]
[EventDate "2024.01.18"]
[EventType "team-tourn"]
[EventCountry "ESP"]
[SourceTitle "playchess.com"]
[Source "ChessBase"]
[SourceQuality "1"]
[TimeControl "5400+30"]

1. g3 {[%emt 0:00:05]} d5 {[%emt 0:01:22]} 2. Bg2 {[%emt 0:00:05]} Nf6 {[%emt 0:00:56]} 3. Nf3 {[%emt 0:00:06]} e6 {[%emt 0:04:56]} 4. O-O {[%emt 0:00:17]} c5 {[%emt 0:00:41]} 5. d3 {[%emt 0:00:48]} Nc6 {[%emt 0:01:04]} 6. Nbd2 {[%emt 0:00:17]} Be7 {[%emt 0:00:48]} 7. e4 {[%emt 0:00:53]} Qc7 {[%emt 0:01:39]} 8. Re1 {[%emt 0:02:16]} b6 {[%emt 0:00:53]} 9. exd5 {[%emt 0:06:12]} exd5 {[%emt 0:11:44]} 10. Nf1 {[%emt 0:02:57]} O-O {[%emt 0:05:12]} 11. Bf4 {[%emt 1:22:04]} Bd6 {[%emt 0:10:38]} 12. Bg5 {[%emt 0:00:00]} Ne8 {[%emt 0:18:04]} 13. Ne3 {[%emt 0:00:00]} Be6 {[%emt 0:00:15]} 14. c4 {[%emt 0:00:00]} dxc4 {[%emt 0:08:39]} 15. Nxc4 {[%emt 0:00:00]} h6 {[%emt 0:00:26]} 16. Nxd6 {[%emt 0:00:00]} Nxd6 {[%emt 0:00:20]} 17. Bf4 {[%emt 0:00:00]} Rad8 {[%emt 0:31:23]} 18. d4 {[%emt 0:00:00]} Nxd4 {[%emt 0:00:00]} 19. Nxd4 {[%emt 0:00:00]} cxd4 {[%emt 0:00:00]} 20. Rc1 {[%emt 0:00:00]} Qe7 {[%emt 0:00:00]} 21. Qxd4 {[%emt 0:00:00]} Nb7 {[%emt 0:00:00]} 22. Qc3 {[%emt 0:00:00]} Nc5 {[%emt 0:02:30]} 23. Rcd1 {[%emt 0:00:00]} Rxd1 {[%emt 0:00:00]} 24. Rxd1 {[%emt 0:00:00]} Rd8 {[%emt 0:00:00]} 25. Rxd8+ {[%emt 0:00:00]} Qxd8 {[%emt 0:00:00]} 26. h3 {[%emt 0:07:30]} Bxa2 {[%emt 0:00:00]} 27. Be3 {[%emt 0:00:00]} Qd1+ {[%emt 0:00:00]} 28. Kh2 {[%emt 0:00:00]} Bd5 {[%emt 0:00:00]} 29. Bxc5 {[%emt 0:00:00]} Bxg2 {[%emt 0:00:00]} 30. Kxg2 {[%emt 0:00:00]} Qd5+ {[%emt 0:00:00]} 31. Qf3 {[%emt 0:00:00]} Qxc5 {[%emt 0:00:00]} 32. Qa8+ {[%emt 0:00:00]} Kh7 {[%emt 0:00:00]} 1/2-1/2

[Event "Lliga Catalana Relegation 2024"]
[Site "Catalonia"]
[Date "2024.04.06"]
[Round "1.3"]
[White "Vehi Bach, Victor Manuel"]
[Black "Martinez Pla, Xavier"]
[Result "1/2-1/2"]
[ECO "B48"]
[WhiteElo "2213"]
[BlackElo "2267"]
[Annotator "RC"]
[PlyCount "55"]
[EventDate "2024.01.18"]
[EventType "team-tourn"]
[EventCountry "ESP"]
[SourceTitle "playchess.com"]
[Source "ChessBase"]
[SourceQuality "1"]
[TimeControl "5400+30"]

1. e4 {[%emt 0:00:03]} c5 {[%emt 0:00:07]} 2. Nf3 {[%emt 0:00:05]} e6 {[%emt 0:00:06]} 3. d4 {[%emt 0:00:13]} cxd4 {[%emt 0:00:02]} 4. Nxd4 {[%emt 0:00:07]} Nc6 {[%emt 0:00:08]} 5. Nc3 {[%emt 0:00:59]} Qc7 {[%emt 0:01:19]} 6. Be3 {[%emt 0:00:15]} a6 {[%emt 0:00:10]} 7. Qf3 {[%emt 0:00:17]} h5 {[%emt 0:00:12]} 8. Qg3 {[%emt 0:01:58]} d6 {[%emt 0:00:17]} 9. f4 {[%emt 0:01:43]} Nf6 {[%emt 0:05:24]} 10. Bd3 {[%emt 0:02:26]} Bd7 {[%emt 0:09:44]} 11. h3 {[%emt 0:13:41]} b5 {[%emt 0:04:42]} 12. a3 {[%emt 0:06:18]} h4 {[%emt 0:06:58]} 13. Qf2 {[%emt 0:02:32]} Be7 {[%emt 0:13:14]} 14. O-O {[%emt 0:10:46]} Rc8 {[%emt 0:55:07]} 15. Nf3 {[%emt 0:10:01]} b4 {[%emt 0:00:00]} 16. axb4 {[%emt 0:06:30]} Nxb4 {[%emt 0:00:00]} 17. Bxa6 {[%emt 0:00:24]} Nxa6 {[%emt 0:00:00]} 18. Rxa6 {[%emt 0:00:08]} Qc4 {[%emt 0:00:00]} 19. Ra7 {[%emt 0:06:45]} Nxe4 {[%emt 0:00:00]} 20. Nxe4 {[%emt 0:00:06]} Qxe4 {[%emt 0:00:00]} 21. c3 {[%emt 0:35:43]} Ra8 {[%emt 0:00:00]} 22. Rfa1 {[%emt 0:00:00]} O-O {[%emt 0:00:00]} 23. Rxa8 {[%emt 0:00:00]} Rxa8 {[%emt 0:00:00]} 24. Rxa8+ {[%emt 0:00:00]} Qxa8 {[%emt 0:00:00]} 25. Nxh4 {[%emt 0:00:00]} Qe4 {[%emt 0:00:00]} 26. Nf3 {[%emt 0:00:00]} Bc6 {[%emt 0:06:00]} 27. Ng5 {[%emt 0:00:00]} Bxg5 {[%emt 0:00:00]} 28. fxg5 {[%emt 0:00:00]} 1/2-1/2

[Event "Lliga Catalana Relegation 2024"]
[Site "Catalonia"]
[Date "2024.03.16"]
[Round "1.3"]
[White "Sanchez Aguilar, Arnau"]
[Black "Ubach Miralda, Marcelo"]
[Result "1/2-1/2"]
[ECO "B12"]
[WhiteElo "2168"]
[BlackElo "2235"]
[Annotator "RC"]
[PlyCount "53"]
[EventDate "2024.01.18"]
[EventType "team-tourn"]
[EventCountry "ESP"]
[SourceTitle "playchess.com"]
[Source "ChessBase"]
[SourceQuality "1"]
[TimeControl "5400+30"]

1. e4 {[%emt 0:00:32]} c6 {[%emt 0:00:15]} 2. d4 {[%emt 0:00:30]} d5 {[%emt 0:00:15]} 3. e5 {[%emt 0:00:39]} c5 {[%emt 0:00:39]} 4. Nf3 {[%emt 0:00:28]} Nc6 {[%emt 0:02:30]} 5. dxc5 {[%emt 0:00:22]} Bg4 {[%emt 0:07:27]} 6. c3 {[%emt 0:01:10]} e6 {[%emt 0:05:04]} 7. Be3 {[%emt 0:00:14]} Nge7 {[%emt 0:04:39]} 8. Nbd2 {[%emt 0:05:34]} g6 {[%emt 0:02:37]} 9. Bd4 {[%emt 0:06:32]} Bg7 {[%emt 0:02:24]} 10. Be2 {[%emt 0:03:44]} O-O {[%emt 0:13:14]} 11. O-O {[%emt 0:07:15]} Qc7 {[%emt 0:01:49]} 12. Re1 {[%emt 0:12:25]} Bxf3 {[%emt 0:01:18]} 13. Nxf3 {[%emt 0:00:13]} Nxe5 {[%emt 0:00:34]} 14. Nxe5 {[%emt 0:13:10]} Bxe5 {[%emt 0:00:18]} 15. Bxe5 {[%emt 0:00:04]} Qxe5 {[%emt 0:00:12]} 16. Bg4 {[%emt 0:00:01]} Qc7 {[%emt 0:15:44]} 17. Qd4 {[%emt 0:00:04]} Rac8 {[%emt 0:00:49]} 18. Qf6 {[%emt 0:02:46]} h5 {[%emt 0:02:23]} 19. Bf3 {[%emt 0:04:24]} Qxc5 {[%emt 0:12:32]} 20. Re5 {[%emt 0:40:23]} Nf5 {[%emt 0:13:10]} 21. Bxd5 {[%emt 0:00:00]} exd5 {[%emt 0:01:00]} 22. Rxf5 {[%emt 0:00:00]} gxf5 {[%emt 0:08:22]} 23. Qg5+ {[%emt 0:00:00]} Kh7 {[%emt 0:00:08]} 24. Qxh5+ {[%emt 0:00:00]} Kg7 {[%emt 0:00:10]} 25. Qg5+ {[%emt 0:00:00]} Kh7 {[%emt 0:00:04]} 26. Qh5+ {[%emt 0:00:00]} Kg7 {[%emt 0:00:07]} 27. Qg5+ {[%emt 0:00:00]} 1/2-1/2

[Event "Lliga Catalana Relegation 2024"]
[Site "Catalonia"]
[Date "2024.04.06"]
[Round "1.4"]
[White "Ventura Bolet, Maxim"]
[Black "Lever, Erwan"]
[Result "0-1"]
[ECO "A13"]
[WhiteElo "2262"]
[BlackElo "2254"]
[Annotator "RC"]
[PlyCount "76"]
[EventDate "2024.01.18"]
[EventType "team-tourn"]
[EventCountry "ESP"]
[SourceTitle "playchess.com"]
[Source "ChessBase"]
[SourceQuality "1"]
[TimeControl "5400+30"]

1. Nf3 {[%emt 0:00:04]} Nf6 {[%emt 0:00:09]} 2. c4 {[%emt 0:00:26]} e6 {[%emt 0:00:06]} 3. b3 {[%emt 0:00:44]} d5 {[%emt 0:00:06]} 4. Bb2 {[%emt 0:00:27]} dxc4 {[%emt 0:00:31]} 5. bxc4 {[%emt 0:00:08]} b6 {[%emt 0:00:21]} 6. g3 {[%emt 0:03:41]} Bb7 {[%emt 0:00:06]} 7. Bg2 {[%emt 0:00:06]} Be7 {[%emt 0:00:24]} 8. O-O {[%emt 0:00:34]} O-O {[%emt 0:00:05]} 9. d3 {[%emt 0:12:17]} Nbd7 {[%emt 0:01:17]} 10. Nc3 {[%emt 0:00:49]} Nc5 {[%emt 0:01:12]} 11. Qc2 {[%emt 0:02:53]} Qc8 {[%emt 0:01:12]} 12. e4 {[%emt 0:03:57]} Rd8 {[%emt 0:19:36]} 13. e5 {[%emt 0:09:49]} Ng4 {[%emt 0:01:12]} 14. d4 {[%emt 0:03:11]} Na6 {[%emt 0:00:32]} 15. Qe2 {[%emt 0:08:08]} c5 {[%emt 0:06:09]} 16. d5 {[%emt 0:02:47]} exd5 {[%emt 0:05:43]} 17. cxd5 {[%emt 0:00:09]} Nb4 {[%emt 0:08:40]} 18. d6 {[%emt 0:04:43]} Bf8 {[%emt 0:00:21]} 19. Qc4 {[%emt 0:17:36]} Bxf3 {[%emt 0:05:25]} 20. Bxf3 {[%emt 0:08:38]} Nxe5 {[%emt 0:00:07]} 21. Qe4 {[%emt 0:00:08]} Nxf3+ {[%emt 0:00:13]} 22. Qxf3 {[%emt 0:00:04]} Rxd6 {[%emt 0:02:24]} 23. Ne4 {[%emt 0:04:46]} Qc6 {[%emt 0:04:40]} 24. Qf5 {[%emt 0:13:25]} Rd5 {[%emt 0:03:12]} 25. Qh3 {[%emt 0:01:14]} Nc2 {[%emt 0:02:10]} 26. Rac1 {[%emt 0:01:18]} Nd4 {[%emt 0:00:45]} 27. Bxd4 {[%emt 0:00:39]} Rxd4 {[%emt 0:00:06]} 28. Nc3 {[%emt 0:00:39]} g6 {[%emt 0:01:33]} 29. Rfe1 {[%emt 0:00:27]} Rad8 {[%emt 0:00:29]} 30. Qf1 {[%emt 0:00:34]} Bh6 {[%emt 0:01:43]} 31. Ne2 {[%emt 0:00:59]} Rd2 {[%emt 0:01:22]} 32. Red1 {[%emt 0:00:36]} Qa4 {[%emt 0:04:08]} 33. Rxd2 {[%emt 0:00:26]} Rxd2 {[%emt 0:00:04]} 34. Nc3 {[%emt 0:00:31]} Qd4 {[%emt 0:01:24]} 35. Nb5 {[%emt 0:00:25]} Qd7 {[%emt 0:05:18]} 36. a4 {[%emt 0:00:33]} a6 {[%emt 0:01:03]} 37. Nc3 {[%emt 0:00:19]} Qd4 {[%emt 0:00:07]} 38. Ne2 {[%emt 0:00:48]} Rxe2 {[%emt 0:00:29]} 0-1

[Event "Lliga Catalana Relegation 2024"]
[Site "Catalonia"]
[Date "2024.04.06"]
[Round "1.4"]
[White "Lever, Erwan"]
[Black "Ventura Bolet, Maxim"]
[Result "*"]
[ECO "A13"]
[WhiteElo "2254"]
[BlackElo "2262"]
[Annotator "RC"]
[PlyCount "22"]
[EventDate "2024.01.18"]
[EventType "team-tourn"]
[EventCountry "ESP"]
[SourceTitle "playchess.com"]
[Source "ChessBase"]
[SourceQuality "1"]
[TimeControl "5400+30"]

1. Nf3 {[%emt 0:00:04]} Nf6 {[%emt 0:00:09]} 2. c4 {[%emt 0:00:26]} e6 {[%emt 0:00:06]} 3. b3 {[%emt 0:00:44]} d5 {[%emt 0:00:06]} 4. Bb2 {[%emt 0:00:27]} dxc4 {[%emt 0:00:31]} 5. bxc4 {[%emt 0:00:08]} b6 {[%emt 0:00:21]} 6. g3 {[%emt 0:03:41]} Bb7 {[%emt 0:00:06]} 7. Bg2 {[%emt 0:00:06]} Be7 {[%emt 0:00:24]} 8. O-O {[%emt 0:00:34]} O-O {[%emt 0:00:05]} 9. d3 {[%emt 0:12:17]} Nbd7 {[%emt 0:01:17]} 10. Nc3 {[%emt 0:00:49]} Nc5 {[%emt 0:01:12]} 11. Qc2 {[%emt 0:02:53]} Qc8 {[%emt 0:01:12]} *